[Event "Early-Titled-Tuesday-Blitz-June-18-2024"]
[Site "Chess.com"]
[Date "2024.06.18"]
[Round "3"]
[White "GAusal"]
[Black "Defend1r"]
[Result "0-1"]
[WhiteElo "2194"]
[BlackElo "2551"]
[TimeControl "180+1"]
[EndTime "8:29:52 PDT"]
[Termination "Defend1r won by resignation"]

1. d4 {[%clk 0:03:00.9]} 1... Nf6 {[%clk 0:02:58.9]} 2. Nf3 {[%clk 0:03:01.3]}
2... e6 {[%clk 0:02:58.7]} 3. Bg5 {[%clk 0:03:00.3]} 3... h6 {[%clk 0:02:53.8]}
4. Bh4 {[%clk 0:02:59.4]} 4... d5 {[%clk 0:02:53.1]} 5. e3 {[%clk 0:02:59.3]}
5... c5 {[%clk 0:02:49.1]} 6. c3 {[%clk 0:02:58.7]} 6... Nc6 {[%clk 0:02:48.7]}
7. Bd3 {[%clk 0:02:58.3]} 7... Be7 {[%clk 0:02:48.3]} 8. O-O {[%clk 0:02:56.5]}
8... O-O {[%clk 0:02:41.8]} 9. Nbd2 {[%clk 0:02:55.5]} 9... b6 {[%clk
0:02:38.8]} 10. Rc1 {[%clk 0:02:53.2]} 10... Bb7 {[%clk 0:02:38.7]} 11. Bb1
{[%clk 0:02:51.3]} 11... Nb8 {[%clk 0:02:24.4]} 12. Qc2 {[%clk 0:02:50.7]} 12...
Ne4 {[%clk 0:02:21]} 13. Bxe7 {[%clk 0:02:47]} 13... Qxe7 {[%clk 0:02:20.2]} 14.
Nxe4 {[%clk 0:02:45.3]} 14... dxe4 {[%clk 0:02:21.1]} 15. Nd2 {[%clk 0:02:45]}
15... f5 {[%clk 0:02:21.4]} 16. f3 {[%clk 0:02:42.9]} 16... exf3 {[%clk
0:02:20.7]} 17. Nxf3 {[%clk 0:02:42]} 17... Nd7 {[%clk 0:02:14.9]} 18. Rce1
{[%clk 0:02:41]} 18... Rac8 {[%clk 0:02:08.1]} 19. Qe2 {[%clk 0:02:40.6]} 19...
e5 {[%clk 0:01:56]} 20. Nxe5 {[%clk 0:02:38.4]} 20... Nxe5 {[%clk 0:01:53.8]}
21. dxe5 {[%clk 0:02:38.4]} 21... Qxe5 {[%clk 0:01:53.3]} 22. e4 {[%clk
0:02:37.7]} 22... Rce8 {[%clk 0:01:28.2]} 23. Qh5 {[%clk 0:02:28.6]} 23... Bxe4
{[%clk 0:00:56.1]} 24. Bxe4 {[%clk 0:02:21.6]} 24... fxe4 {[%clk 0:00:57]} 25.
Rxf8+ {[%clk 0:02:19.8]} 25... Kxf8 {[%clk 0:00:57.9]} 26. Qxe5 {[%clk 0:02:13]}
26... Rxe5 {[%clk 0:00:57.5]} 27. Kf2 {[%clk 0:02:13.1]} 27... Kf7 {[%clk
0:00:54.5]} 28. Ke3 {[%clk 0:02:12.8]} 28... Ke6 {[%clk 0:00:53.7]} 29. Rf1
{[%clk 0:02:10.5]} 29... Rf5 {[%clk 0:00:51.8]} 30. Rd1 {[%clk 0:02:09]} 30...
Rd5 {[%clk 0:00:51.3]} 31. Rf1 {[%clk 0:02:08.7]} 31... g5 {[%clk 0:00:43]} 32.
Rf8 {[%clk 0:02:07.3]} 32... Rd3+ {[%clk 0:00:40.3]} 33. Ke2 {[%clk 0:02:06.6]}
33... Rd7 {[%clk 0:00:39.7]} 34. Rh8 {[%clk 0:02:05.2]} 34... Ke5 {[%clk
0:00:27.6]} 35. Rxh6 {[%clk 0:02:04]} 35... Kf5 {[%clk 0:00:24.8]} 36. Rh8
{[%clk 0:02:00.9]} 36... Rc7 {[%clk 0:00:24.1]} 37. Rf8+ {[%clk 0:02:00]} 37...
Ke5 {[%clk 0:00:23.9]} 38. Ke3 {[%clk 0:01:58.8]} 38... Re7 {[%clk 0:00:23.8]}
39. Rg8 {[%clk 0:01:57.9]} 39... Kf5 {[%clk 0:00:23.7]} 40. Rf8+ {[%clk
0:01:58.1]} 40... Kg4 {[%clk 0:00:23.4]} 41. Rg8 {[%clk 0:01:51.9]} 41... Re6
{[%clk 0:00:21.8]} 42. Rg7 {[%clk 0:01:51.3]} 42... a5 {[%clk 0:00:22.3]} 43.
Rf7 {[%clk 0:01:49.9]} 43... Rd6 {[%clk 0:00:16.3]} 44. Re7 {[%clk 0:01:49]}
44... Kf5 {[%clk 0:00:14.7]} 45. Rxe4 {[%clk 0:01:44.1]} 45... Rd1 {[%clk
0:00:14.7]} 46. g4+ {[%clk 0:01:42.5]} 46... Kf6 {[%clk 0:00:14.2]} 47. Kf2
{[%clk 0:01:37.5]} 47... Rh1 {[%clk 0:00:09.3]} 48. Kg2 {[%clk 0:01:35.2]} 48...
Ra1 {[%clk 0:00:09.2]} 49. a3 {[%clk 0:01:31.2]} 49... b5 {[%clk 0:00:09.3]} 50.
Re2 {[%clk 0:01:30.3]} 50... Rd1 {[%clk 0:00:08.9]} 51. Kg3 {[%clk 0:01:29.7]}
51... Rd5 {[%clk 0:00:03.4]} 52. h4 {[%clk 0:01:28.6]} 52... Rd3+ {[%clk
0:00:03.6]} 53. Kh2 {[%clk 0:01:28.5]} 53... gxh4 {[%clk 0:00:04.2]} 54. Rf2+
{[%clk 0:01:28.6]} 54... Kg5 {[%clk 0:00:04.6]} 55. Re2 {[%clk 0:01:28.1]} 55...
Kxg4 {[%clk 0:00:04.7]} 56. Rg2+ {[%clk 0:01:25.9]} 56... Kf4 {[%clk 0:00:04.6]}
57. Rf2+ {[%clk 0:01:25.8]} 57... Ke3 {[%clk 0:00:05.2]} 58. Rg2 {[%clk
0:01:25.5]} 58... Rd2 {[%clk 0:00:05.8]} 59. Kh3 {[%clk 0:01:03.7]} 59... Rxg2
{[%clk 0:00:05.6]} 60. Kxg2 {[%clk 0:01:04]} 60... Kd2 {[%clk 0:00:06.5]} 61.
Kh3 {[%clk 0:01:04.7]} 61... Kc2 {[%clk 0:00:06.5]} 62. Kxh4 {[%clk 0:01:05.6]}
62... Kxb2 {[%clk 0:00:06.9]} 63. Kg3 {[%clk 0:01:06.5]} 63... Kxa3 {[%clk
0:00:06.2]} 64. Kf4 {[%clk 0:01:07.4]} 64... Kb3 {[%clk 0:00:06.7]} 65. Ke4
{[%clk 0:01:08.3]} 65... c4 {[%clk 0:00:07.2]} 66. Kd4 {[%clk 0:01:08.1]} 66...
a4 {[%clk 0:00:06.9]} 67. Ke3 {[%clk 0:01:07.5]} 67... Kxc3 {[%clk 0:00:06.9]}
0-1

[Event "Early-Titled-Tuesday-Blitz-June-18-2024"]
[Site "Chess.com"]
[Date "2024.06.18"]
[Round "3"]
[White "GiorgianBarbosa"]
[Black "Chessgod9oninsta"]
[Result "1/2-1/2"]
[WhiteElo "2508"]
[BlackElo "2762"]
[TimeControl "180+1"]
[EndTime "8:29:53 PDT"]
[Termination "Game drawn by repetition"]

1. d4 {[%clk 0:03:00]} 1... d5 {[%clk 0:02:51.7]} 2. Nc3 {[%clk 0:03:00.1]} 2...
Nf6 {[%clk 0:02:47.5]} 3. Bf4 {[%clk 0:03:00.4]} 3... a6 {[%clk 0:02:45.7]} 4.
e3 {[%clk 0:02:59.7]} 4... Bf5 {[%clk 0:02:43.4]} 5. Nf3 {[%clk 0:02:58.8]} 5...
e6 {[%clk 0:02:43.1]} 6. Ne5 {[%clk 0:02:58.3]} 6... h6 {[%clk 0:02:41.2]} 7. g4
{[%clk 0:02:52.4]} 7... Bh7 {[%clk 0:02:39.7]} 8. h4 {[%clk 0:02:52.7]} 8...
Nfd7 {[%clk 0:02:27.8]} 9. g5 {[%clk 0:02:45]} 9... hxg5 {[%clk 0:02:23.2]} 10.
hxg5 {[%clk 0:02:45.9]} 10... Bxc2 {[%clk 0:02:22.1]} 11. Rxh8 {[%clk
0:02:42.9]} 11... Bxd1 {[%clk 0:02:21.5]} 12. Rxd1 {[%clk 0:02:42.6]} 12... Nxe5
{[%clk 0:02:20.9]} 13. dxe5 {[%clk 0:02:41.1]} 13... Nd7 {[%clk 0:02:07.6]} 14.
Bd3 {[%clk 0:02:39.7]} 14... g6 {[%clk 0:02:05]} 15. Ke2 {[%clk 0:02:37]} 15...
c6 {[%clk 0:02:03.9]} 16. Rdh1 {[%clk 0:02:34.7]} 16... Qb6 {[%clk 0:02:02.1]}
17. Nd1 {[%clk 0:02:10.3]} 17... Qc7 {[%clk 0:01:33.7]} 18. R1h7 {[%clk
0:02:09]} 18... Nxe5 {[%clk 0:01:26.2]} 19. Rxf8+ {[%clk 0:02:01.1]} 19... Kxf8
{[%clk 0:01:20.5]} 20. Rh8+ {[%clk 0:02:01.3]} 20... Ke7 {[%clk 0:01:20.2]} 21.
Rxa8 {[%clk 0:02:02.2]} 21... c5 {[%clk 0:01:10.1]} 22. b3 {[%clk 0:01:37.2]}
22... c4 {[%clk 0:01:00]} 23. bxc4 {[%clk 0:01:36.1]} 23... dxc4 {[%clk
0:00:59]} 24. Bc2 {[%clk 0:01:30]} 24... c3 {[%clk 0:00:58]} 25. Bxe5 {[%clk
0:01:16.7]} 25... Qxe5 {[%clk 0:00:57.4]} 26. Rc8 {[%clk 0:01:10.8]} 26... Qxg5
{[%clk 0:00:54.8]} 27. Rxc3 {[%clk 0:01:09.4]} 27... Qa5 {[%clk 0:00:54.3]} 28.
Bb3 {[%clk 0:01:05.9]} 28... b5 {[%clk 0:00:53.1]} 29. Rd3 {[%clk 0:01:01.1]}
29... Qb6 {[%clk 0:00:52.4]} 30. Nc3 {[%clk 0:00:52.3]} 30... f5 {[%clk
0:00:45.7]} 31. f4 {[%clk 0:00:49.8]} 31... Qc6 {[%clk 0:00:42]} 32. Kd2 {[%clk
0:00:47.2]} 32... Qg2+ {[%clk 0:00:41.6]} 33. Ne2 {[%clk 0:00:46.5]} 33... g5
{[%clk 0:00:41.1]} 34. fxg5 {[%clk 0:00:42.9]} 34... Qxg5 {[%clk 0:00:41.4]} 35.
Rc3 {[%clk 0:00:39.6]} 35... Kd6 {[%clk 0:00:39.8]} 36. Rd3+ {[%clk 0:00:35.4]}
36... Ke7 {[%clk 0:00:39.2]} 37. Rc3 {[%clk 0:00:35.8]} 37... Kd6 {[%clk
0:00:37.6]} 38. Nf4 {[%clk 0:00:32.6]} 38... e5 {[%clk 0:00:32.6]} 39. Rd3+
{[%clk 0:00:32.1]} 39... Ke7 {[%clk 0:00:31.2]} 40. Nd5+ {[%clk 0:00:32]} 40...
Kf8 {[%clk 0:00:31.1]} 41. Rc3 {[%clk 0:00:29.2]} 41... Qg2+ {[%clk 0:00:31]}
42. Kc1 {[%clk 0:00:29.4]} 42... f4 {[%clk 0:00:28.3]} 43. exf4 {[%clk
0:00:26.4]} 43... exf4 {[%clk 0:00:29.2]} 44. Rc8+ {[%clk 0:00:25.2]} 44... Kg7
{[%clk 0:00:28.8]} 45. Rc7+ {[%clk 0:00:24.7]} 45... Kh6 {[%clk 0:00:26.6]} 46.
Rc6+ {[%clk 0:00:23.6]} 46... Kg7 {[%clk 0:00:25.5]} 47. Rc7+ {[%clk 0:00:21.2]}
47... Kh6 {[%clk 0:00:23.4]} 48. Rc6+ {[%clk 0:00:20]} 48... Kg7 {[%clk
0:00:22.9]} 49. Rc7+ {[%clk 0:00:15.8]} 1/2-1/2

[Event "Early-Titled-Tuesday-Blitz-June-18-2024"]
[Site "Chess.com"]
[Date "2024.06.18"]
[Round "3"]
[White "cthulhuuu"]
[Black "annasargsyan_m"]
[Result "0-1"]
[WhiteElo "2347"]
[BlackElo "2606"]
[TimeControl "180+1"]
[EndTime "8:29:55 PDT"]
[Termination "annasargsyan_m won by checkmate"]

1. e4 {[%clk 0:03:00.2]} 1... c6 {[%clk 0:03:00.9]} 2. d3 {[%clk 0:03:00.4]}
2... d5 {[%clk 0:03:01.8]} 3. Nd2 {[%clk 0:03:01.1]} 3... g6 {[%clk 0:03:00.9]}
4. g3 {[%clk 0:03:01.5]} 4... Bg7 {[%clk 0:03:01.5]} 5. Bg2 {[%clk 0:03:00.4]}
5... Nf6 {[%clk 0:03:02.1]} 6. Ngf3 {[%clk 0:03:00.7]} 6... O-O {[%clk
0:03:02.6]} 7. O-O {[%clk 0:03:01.2]} 7... Bg4 {[%clk 0:03:03.2]} 8. h3 {[%clk
0:03:00.1]} 8... Bxf3 {[%clk 0:03:01.8]} 9. Qxf3 {[%clk 0:03:01]} 9... Nbd7
{[%clk 0:03:01.5]} 10. g4 {[%clk 0:02:56.1]} 10... e6 {[%clk 0:02:50.4]} 11. Qe2
{[%clk 0:02:54.8]} 11... Qc7 {[%clk 0:02:48.6]} 12. h4 {[%clk 0:02:52]} 12... h5
{[%clk 0:02:45.8]} 13. g5 {[%clk 0:02:40]} 13... Ng4 {[%clk 0:02:45.6]} 14. Nf3
{[%clk 0:02:29.5]} 14... Nde5 {[%clk 0:02:44.2]} 15. Nxe5 {[%clk 0:02:29.1]}
15... Bxe5 {[%clk 0:02:40.9]} 16. f4 {[%clk 0:02:07.4]} 16... Bxb2 {[%clk
0:02:24]} 17. Bxb2 {[%clk 0:02:00.1]} 17... Qb6+ {[%clk 0:02:23.3]} 18. Kh1
{[%clk 0:01:59.2]} 18... Qxb2 {[%clk 0:02:23.1]} 19. e5 {[%clk 0:01:46.3]} 19...
Qd4 {[%clk 0:02:19.5]} 20. Rae1 {[%clk 0:01:41.5]} 20... b5 {[%clk 0:02:10.2]}
21. Bh3 {[%clk 0:01:41.6]} 21... Kg7 {[%clk 0:01:58.1]} 22. Bxg4 {[%clk
0:01:41.6]} 22... hxg4 {[%clk 0:01:58.5]} 23. Qxg4 {[%clk 0:01:42.5]} 23... Rh8
{[%clk 0:01:58.8]} 24. Kg2 {[%clk 0:01:43.2]} 24... Rh5 {[%clk 0:01:57.4]} 25.
Rh1 {[%clk 0:01:26.2]} 25... Rah8 {[%clk 0:01:56.9]} 26. Kg3 {[%clk 0:01:24]}
26... b4 {[%clk 0:01:55.3]} 27. Qe2 {[%clk 0:01:06.6]} 27... a5 {[%clk
0:01:53.2]} 28. Qe3 {[%clk 0:00:55.8]} 28... Qc3 {[%clk 0:01:45.3]} 29. Re2
{[%clk 0:00:52.5]} 29... c5 {[%clk 0:01:44.8]} 30. Qf3 {[%clk 0:00:41.3]} 30...
a4 {[%clk 0:01:33.4]} 31. Reh2 {[%clk 0:00:31.2]} 31... a3 {[%clk 0:01:32.6]}
32. Rb1 {[%clk 0:00:29.8]} 32... Qd4 {[%clk 0:01:23.4]} 33. Rbh1 {[%clk
0:00:16]} 33... c4 {[%clk 0:00:55.4]} 34. dxc4 {[%clk 0:00:12.1]} 34... Qxc4
{[%clk 0:00:51]} 35. Qe3 {[%clk 0:00:06.7]} 35... Rc8 {[%clk 0:00:43.5]} 36. Qa7
{[%clk 0:00:05.1]} 36... Qc3+ {[%clk 0:00:39.1]} 37. Kg4 {[%clk 0:00:05.3]}
37... Rc4 {[%clk 0:00:22.3]} 38. Qe7 {[%clk 0:00:04.5]} 38... Qxe5 {[%clk
0:00:18.7]} 39. Kg3 {[%clk 0:00:01.8]} 39... Qxf4+ {[%clk 0:00:18]} 40. Kg2
{[%clk 0:00:02]} 40... Rxc2+ {[%clk 0:00:17.9]} 41. Kg1 {[%clk 0:00:02]} 41...
Qc1# {[%clk 0:00:15.1]} 0-1

[Event "Early-Titled-Tuesday-Blitz-June-18-2024"]
[Site "Chess.com"]
[Date "2024.06.18"]
[Round "3"]
[White "Lady_Nika"]
[Black "drdaro"]
[Result "0-1"]
[WhiteElo "2517"]
[BlackElo "2326"]
[TimeControl "180+1"]
[EndTime "8:29:56 PDT"]
[Termination "drdaro won by checkmate"]

1. g4 {[%clk 0:02:59.8]} 1... h5 {[%clk 0:02:43.3]} 2. g5 {[%clk 0:02:58.1]}
2... e5 {[%clk 0:02:37.3]} 3. h4 {[%clk 0:02:57.7]} 3... d5 {[%clk 0:02:36.6]}
4. Bg2 {[%clk 0:02:55.8]} 4... Be6 {[%clk 0:02:28.3]} 5. d3 {[%clk 0:02:55.8]}
5... c6 {[%clk 0:02:27.3]} 6. Nc3 {[%clk 0:02:55.7]} 6... Bd6 {[%clk 0:02:25.9]}
7. Bd2 {[%clk 0:02:54.5]} 7... Nd7 {[%clk 0:02:26.3]} 8. e3 {[%clk 0:02:54.6]}
8... Ne7 {[%clk 0:02:25.9]} 9. Qe2 {[%clk 0:02:54.6]} 9... b5 {[%clk 0:02:24.7]}
10. Nh3 {[%clk 0:02:51]} 10... Qc7 {[%clk 0:02:21.1]} 11. e4 {[%clk 0:02:42.3]}
11... d4 {[%clk 0:02:19.8]} 12. Nd1 {[%clk 0:02:42.5]} 12... f5 {[%clk
0:02:12.4]} 13. gxf6 {[%clk 0:02:22.3]} 13... gxf6 {[%clk 0:02:13.3]} 14. Bf3
{[%clk 0:02:10.4]} 14... O-O-O {[%clk 0:02:04.8]} 15. c3 {[%clk 0:02:10.4]}
15... Rhg8 {[%clk 0:01:57.9]} 16. Qf1 {[%clk 0:01:46.2]} 16... dxc3 {[%clk
0:01:13.2]} 17. Nxc3 {[%clk 0:01:45.4]} 17... Bb4 {[%clk 0:01:13.6]} 18. O-O-O
{[%clk 0:01:41.1]} 18... Qa5 {[%clk 0:01:05.7]} 19. a3 {[%clk 0:01:34.7]} 19...
Bxa3 {[%clk 0:00:58.3]} 20. Nd5 {[%clk 0:01:34.6]} 20... Qa4 {[%clk 0:00:40]}
21. bxa3 {[%clk 0:01:17.7]} 21... Qxa3+ {[%clk 0:00:40.9]} 22. Kc2 {[%clk
0:01:17.9]} 22... Qa2+ {[%clk 0:00:37.6]} 23. Kc1 {[%clk 0:00:59.7]} 23... cxd5
{[%clk 0:00:36.8]} 24. d4 {[%clk 0:00:12.5]} 24... Kb8 {[%clk 0:00:21.7]} 25.
Qxb5+ {[%clk 0:00:12.3]} 25... Nb6 {[%clk 0:00:22.4]} 26. Bc3 {[%clk 0:00:06.2]}
26... Rc8 {[%clk 0:00:21.4]} 27. Rd3 {[%clk 0:00:06.6]} 27... exd4 {[%clk
0:00:16.4]} 28. exd5 {[%clk 0:00:05.4]} 28... Bf5 {[%clk 0:00:10.5]} 29. d6
{[%clk 0:00:04.4]} 29... Bxd3 {[%clk 0:00:08.8]} 30. Qb4 {[%clk 0:00:03.6]}
30... Rxc3+ {[%clk 0:00:08.4]} 31. Kd1 {[%clk 0:00:03.6]} 31... Qc2+ {[%clk
0:00:05.4]} 32. Ke1 {[%clk 0:00:03.9]} 32... Qc1+ {[%clk 0:00:05.5]} 33. Bd1
{[%clk 0:00:04.4]} 33... Nd5 {[%clk 0:00:05.2]} 34. Qb5 {[%clk 0:00:03.7]} 34...
Qb1 {[%clk 0:00:03.8]} 35. Qa5 {[%clk 0:00:01.6]} 35... Rc1 {[%clk 0:00:03.7]}
36. Kd2 {[%clk 0:00:01.6]} 36... Rxd1+ {[%clk 0:00:04.6]} 37. Rxd1 {[%clk
0:00:01.9]} 37... Qc2+ {[%clk 0:00:05.5]} 38. Ke1 {[%clk 0:00:02.5]} 38... Qe2#
{[%clk 0:00:06.4]} 0-1

[Event "Early-Titled-Tuesday-Blitz-June-18-2024"]
[Site "Chess.com"]
[Date "2024.06.18"]
[Round "3"]
[White "tptagain"]
[Black "Andrey_Klymchuk"]
[Result "1-0"]
[WhiteElo "2938"]
[BlackElo "2718"]
[TimeControl "180+1"]
[EndTime "8:29:57 PDT"]
[Termination "tptagain won by resignation"]

1. d4 {[%clk 0:03:00.9]} 1... Nf6 {[%clk 0:02:59.5]} 2. Nf3 {[%clk 0:03:01.4]}
2... e6 {[%clk 0:02:59.2]} 3. Bg5 {[%clk 0:03:01.8]} 3... c5 {[%clk 0:02:54.6]}
4. d5 {[%clk 0:03:01.8]} 4... exd5 {[%clk 0:02:44.8]} 5. e3 {[%clk 0:03:01.7]}
5... d6 {[%clk 0:02:40]} 6. Nc3 {[%clk 0:03:01]} 6... Be7 {[%clk 0:02:36.3]} 7.
Nxd5 {[%clk 0:02:58.8]} 7... Nxd5 {[%clk 0:02:11.2]} 8. Qxd5 {[%clk 0:02:59.7]}
8... O-O {[%clk 0:02:05.4]} 9. O-O-O {[%clk 0:02:56.6]} 9... Bxg5 {[%clk
0:01:56.4]} 10. Nxg5 {[%clk 0:02:50.8]} 10... Nc6 {[%clk 0:01:49.5]} 11. a3
{[%clk 0:02:24.4]} 11... Qe7 {[%clk 0:01:35.7]} 12. Bb5 {[%clk 0:01:28.1]} 12...
Rd8 {[%clk 0:01:00.8]} 13. Nf3 {[%clk 0:00:53.7]} 13... Be6 {[%clk 0:00:53.9]}
14. Qg5 {[%clk 0:00:53.9]} 14... Qxg5 {[%clk 0:00:48.6]} 15. Nxg5 {[%clk
0:00:54.8]} 15... h6 {[%clk 0:00:48]} 16. Nxe6 {[%clk 0:00:52.5]} 16... fxe6
{[%clk 0:00:48.9]} 17. Bxc6 {[%clk 0:00:52.3]} 17... bxc6 {[%clk 0:00:49.1]} 18.
h4 {[%clk 0:00:49.9]} 18... Kf7 {[%clk 0:00:48.6]} 19. h5 {[%clk 0:00:50.1]}
19... a5 {[%clk 0:00:48.4]} 20. a4 {[%clk 0:00:39]} 20... d5 {[%clk 0:00:47.1]}
21. b3 {[%clk 0:00:38]} 21... Rab8 {[%clk 0:00:46.7]} 22. f3 {[%clk 0:00:36.1]}
22... Rb4 {[%clk 0:00:46]} 23. Rd3 {[%clk 0:00:25]} 23... Rdb8 {[%clk
0:00:44.2]} 24. Rc3 {[%clk 0:00:25]} 24... c4 {[%clk 0:00:43.1]} 25. Rh4 {[%clk
0:00:22]} 25... cxb3 {[%clk 0:00:40.7]} 26. Rxb4 {[%clk 0:00:22.9]} 26... Rxb4
{[%clk 0:00:38.6]} 27. cxb3 {[%clk 0:00:22.6]} 27... Ke7 {[%clk 0:00:38.9]} 28.
Rxc6 {[%clk 0:00:18.2]} 28... Rxb3 {[%clk 0:00:39]} 29. Rc7+ {[%clk 0:00:16.3]}
29... Kf6 {[%clk 0:00:38.8]} 30. Ra7 {[%clk 0:00:13.9]} 30... Rxe3 {[%clk
0:00:38.6]} 31. Rxa5 {[%clk 0:00:14.4]} 31... Re2 {[%clk 0:00:38.2]} 32. g4
{[%clk 0:00:11.2]} 32... Rf2 {[%clk 0:00:35.4]} 33. Ra8 {[%clk 0:00:11.6]} 33...
Ke7 {[%clk 0:00:35.3]} 34. a5 {[%clk 0:00:07.5]} 34... Ra2 {[%clk 0:00:26.4]}
35. a6 {[%clk 0:00:07.4]} 35... Kd6 {[%clk 0:00:26.7]} 36. f4 {[%clk 0:00:06.3]}
36... Kc5 {[%clk 0:00:23.3]} 37. Rg8 {[%clk 0:00:04.3]} 37... Rxa6 {[%clk
0:00:22.6]} 38. Rxg7 {[%clk 0:00:04.9]} 38... Ra4 {[%clk 0:00:21.2]} 39. g5
{[%clk 0:00:04.5]} 39... Rxf4 {[%clk 0:00:20.2]} 40. gxh6 {[%clk 0:00:05.1]}
40... Rf6 {[%clk 0:00:19.8]} 41. h7 {[%clk 0:00:03.7]} 41... Rh6 {[%clk
0:00:19.7]} 42. Kd2 {[%clk 0:00:04.4]} 42... Kd4 {[%clk 0:00:19.3]} 43. Ke2
{[%clk 0:00:04.3]} 43... e5 {[%clk 0:00:19.8]} 44. Kf3 {[%clk 0:00:04.5]} 44...
Kd3 {[%clk 0:00:20]} 45. Kg4 {[%clk 0:00:04.9]} 45... e4 {[%clk 0:00:19.7]} 46.
Kg5 {[%clk 0:00:05.5]} 46... Rxh7 {[%clk 0:00:19.9]} 47. Rxh7 {[%clk 0:00:05.8]}
47... e3 {[%clk 0:00:20.8]} 48. Re7 {[%clk 0:00:06.4]} 48... d4 {[%clk
0:00:21.2]} 49. h6 {[%clk 0:00:07.3]} 49... Ke2 {[%clk 0:00:21.4]} 50. h7 {[%clk
0:00:07.9]} 50... d3 {[%clk 0:00:22.2]} 51. h8=Q {[%clk 0:00:08.4]} 51... d2
{[%clk 0:00:22.8]} 52. Qh2+ {[%clk 0:00:08.6]} 1-0

[Event "Early-Titled-Tuesday-Blitz-June-18-2024"]
[Site "Chess.com"]
[Date "2024.06.18"]
[Round "3"]
[White "FishThatRoared"]
[Black "Jeppesen08"]
[Result "0-1"]
[WhiteElo "2242"]
[BlackElo "2468"]
[TimeControl "180+1"]
[EndTime "8:29:58 PDT"]
[Termination "Jeppesen08 won on time"]

1. e4 {[%clk 0:03:00.9]} 1... c5 {[%clk 0:02:59.6]} 2. d4 {[%clk 0:03:00.2]}
2... cxd4 {[%clk 0:02:59.2]} 3. c3 {[%clk 0:03:00.9]} 3... dxc3 {[%clk
0:02:56.3]} 4. Nxc3 {[%clk 0:03:01]} 4... Nc6 {[%clk 0:02:56.1]} 5. Nf3 {[%clk
0:03:01.6]} 5... d6 {[%clk 0:02:56]} 6. Bc4 {[%clk 0:03:01.8]} 6... a6 {[%clk
0:02:47]} 7. O-O {[%clk 0:03:01.2]} 7... Nf6 {[%clk 0:02:47.3]} 8. Bf4 {[%clk
0:03:00.7]} 8... Bg4 {[%clk 0:02:46.6]} 9. h3 {[%clk 0:02:59.8]} 9... Bxf3
{[%clk 0:02:46.1]} 10. Qxf3 {[%clk 0:03:00.4]} 10... Rc8 {[%clk 0:02:45.8]} 11.
Rfd1 {[%clk 0:02:45.5]} 11... Qc7 {[%clk 0:02:33.9]} 12. Rac1 {[%clk 0:02:21.3]}
12... e6 {[%clk 0:02:12.4]} 13. Nd5 {[%clk 0:02:04.9]} 13... exd5 {[%clk
0:02:01.1]} 14. exd5 {[%clk 0:02:03.9]} 14... Ne5 {[%clk 0:01:47.8]} 15. Bxe5
{[%clk 0:02:01]} 15... dxe5 {[%clk 0:01:48.7]} 16. Bb5+ {[%clk 0:02:00.8]} 16...
axb5 {[%clk 0:01:49.2]} 17. Rxc7 {[%clk 0:02:00.8]} 17... Rxc7 {[%clk
0:01:50.1]} 18. Qe2 {[%clk 0:01:50.3]} 18... Bd6 {[%clk 0:01:43.4]} 19. Qxb5+
{[%clk 0:01:45.8]} 19... Rd7 {[%clk 0:01:43.4]} 20. g4 {[%clk 0:01:33.2]} 20...
h6 {[%clk 0:01:40.8]} 21. h4 {[%clk 0:01:27.6]} 21... Nxg4 {[%clk 0:01:37]} 22.
Qc4 {[%clk 0:01:21.2]} 22... Nf6 {[%clk 0:01:32.1]} 23. Qc8+ {[%clk 0:01:19.3]}
23... Rd8 {[%clk 0:01:21.1]} 24. Qxb7 {[%clk 0:01:19.2]} 24... O-O {[%clk
0:01:20.9]} 25. a4 {[%clk 0:01:12]} 25... e4 {[%clk 0:01:20.9]} 26. a5 {[%clk
0:01:08.3]} 26... Rb8 {[%clk 0:01:16.8]} 27. Qc6 {[%clk 0:01:07.9]} 27... Be5
{[%clk 0:01:16.7]} 28. a6 {[%clk 0:01:02.5]} 28... Bxb2 {[%clk 0:01:12.1]} 29.
a7 {[%clk 0:00:56.3]} 29... Ra8 {[%clk 0:01:12.3]} 30. Qb6 {[%clk 0:00:39.1]}
30... Be5 {[%clk 0:01:05.1]} 31. d6 {[%clk 0:00:38.9]} 31... Nd7 {[%clk
0:00:59.9]} 32. Qb7 {[%clk 0:00:33.3]} 32... Rfd8 {[%clk 0:00:49.2]} 33. Rd5
{[%clk 0:00:16.8]} 33... g5 {[%clk 0:00:44.5]} 34. hxg5 {[%clk 0:00:15.5]} 34...
hxg5 {[%clk 0:00:45.4]} 35. Kg2 {[%clk 0:00:15.2]} 35... Kg7 {[%clk 0:00:44.4]}
36. Qc7 {[%clk 0:00:10.5]} 36... Kg6 {[%clk 0:00:41.3]} 37. Rb5 {[%clk
0:00:09.4]} 37... f6 {[%clk 0:00:33.5]} 38. Ra5 {[%clk 0:00:06.8]} 38... Nf8
{[%clk 0:00:30.3]} 39. Qc6 {[%clk 0:00:04.7]} 39... Bxd6 {[%clk 0:00:19.8]} 40.
Qxe4+ {[%clk 0:00:03.2]} 40... Kf7 {[%clk 0:00:19.6]} 41. Qd5+ {[%clk
0:00:01.3]} 41... Kg7 {[%clk 0:00:18.9]} 42. Qb7+ {[%clk 0:00:01]} 42... Kg6
{[%clk 0:00:17.2]} 43. Rd5 {[%clk 0:00:01]} 43... Be5 {[%clk 0:00:07.9]} 0-1